bitfinex/quotes_SOLUSD_20241009
["timestamp","ask_amount","ask_price","bid_price","bid_amount"]
[1728463129493,20.0,143.08,143.04,1.39806784]
[1728463129793,6.9892,143.08,143.04,1.39806784]
[1728463130093,16.9049389,143.09,143.04,1.39806784]
[1728463130094,23.8935389,143.09,143.04,8.38896784]
[1728463130284,6.9898,143.07,143.04,1.39806784]
[1728463130779,16.9049389,143.09,143.03,24.4696]
[1728463130972,6.9892,143.08,143.03,24.4696]
[1728463131385,16.9049389,143.09,143.03,24.4696]
[1728463131593,16.9049389,143.09,143.04,8.38843481]
[1728463131794,23.8935389,143.09,143.04,8.38843481]
[1728463132289,23.8935389,143.09,143.05,6.9905]
[1728463132598,16.9049389,143.09,143.06,1.39774987]
[1728463133473,16.9049389,143.09,143.06,8.38764987]
[1728463133675,16.9049389,143.09,143.05,6.9904]
[1728463134272,16.9049389,143.09,143.06,1.39777642]
[1728463135275,0.8478389,143.09,143.06,8.38737642]
[1728463135772,0.8478389,143.09,143.07,6.9895]
[1728463135974,0.8478389,143.09,143.08,1.39759483]
[1728463137101,0.8478389,143.09,143.07,6.9895]
[1728463137674,0.8478389,143.09,143.08,1.39759763]
[1728463137875,0.8478389,143.09,143.06,8.38749803]
[1728463138097,0.8478389,143.09,143.06,6.9899]
[1728463138591,0.8478389,143.09,143.05,17.4754]
[1728463138794,0.8478389,143.09,143.05,24.4658]
[1728463139297,7.8364389,143.09,143.05,17.4754]
[1728463139483,6.9891,143.08,143.04,30.767784]
[1728463140299,0.8478389,143.09,143.05,1.39779069]
[1728463140502,0.8478389,143.09,143.06,6.99]
[1728463140680,0.8478389,143.09,143.07,1.397663]
[1728463140881,0.8478389,143.09,143.06,6.99]
[1728463141303,7.8367389,143.09,143.04,41.253684]
[1728463141486,0.8478389,143.09,143.05,1.39778201]
[1728463141802,7.8364389,143.09,143.06,1.39770179]
[1728463142005,7.8364389,143.09,143.04,30.767484]
[1728463142603,0.8478389,143.09,143.05,30.62590279]
[1728463142905,0.8478389,143.09,143.06,6.9899]
[1728463144284,0.8478389,143.09,143.07,1.39763553]
[1728463144709,0.8478389,143.09,143.07,8.38703553]
[1728463146381,0.8478389,143.09,143.08,30.765884]
[1728463146800,0.8478389,143.09,143.08,30.891374]
[1728463147201,0.8478389,143.09,143.08,31.016864]
[1728463147384,0.8478389,143.09,143.08,37.564564]
[1728463148407,0.8478389,143.09,143.08,58.09173286]
[1728463148906,0.8478389,143.09,143.08,67.55706349]
[1728463149108,28.7226,143.21,143.16,6.985]
[1728463149299,28.7226,143.21,143.14,17.4649]
[1728463149300,6.9833,143.2,143.15,8.38241787]
[1728463149611,6.9832,143.2,143.16,1.39674354]
[1728463149807,6.9832,143.2,143.16,8.38174354]
[1728463150308,6.9832,143.2,143.16,6.985]
[1728463150913,6.9832,143.2,143.15,6.9855]
[1728463151088,6.9837,143.19,143.15,6.9855]
[1728463151409,6.9837,143.19,143.14,24.4507]
[1728463151615,6.9833,143.2,143.15,8.38244246]
[1728463151912,6.9833,143.2,143.16,6.985]
[1728463152903,22.4957,143.21,143.17,8.38132566]
[1728463153096,15.5129,143.21,143.17,6.9846]
[1728463153407,22.4957,143.21,143.16,6.9851]
[1728463153909,6.9832,143.2,143.16,6.9851]
[1728463154107,6.9838,143.19,143.14,17.4649]
[1728463154307,6.9838,143.19,143.15,6.9856]
[1728463154692,6.9833,143.2,143.15,6.9856]
[1728463155711,6.9843,143.18,143.15,1.39678671]
[1728463155908,15.5129,143.21,143.15,1.39678671]
[1728463156211,6.9838,143.19,143.15,1.39678671]
[1728463156715,6.9843,143.18,143.14,17.4649]
[1728463157518,6.9843,143.18,143.15,1.396943]
[1728463157823,6.9847,143.17,143.12,6.987]
[1728463158186,15.5129,143.21,143.11,17.4684]
[1728463158392,6.9856,143.15,143.11,17.4684]
[1728463159295,6.9853,143.16,143.12,1.39716513]
[1728463159498,6.9853,143.16,143.11,24.4559]
[1728463160403,6.9857,143.15,143.11,24.4559]
[1728463160717,6.9857,143.15,143.12,1.39716894]
[1728463161019,6.9857,143.15,143.11,24.4559]
[1728463165202,6.9857,143.15,143.11,17.4684]
[1728463165525,6.9865,143.14,143.09,6.9884]
[1728463166196,6.9867,143.13,143.09,6.9884]
[1728463167417,15.3856,143.15,143.08,17.4721]
[1728463167723,15.3856,143.15,143.09,8.38589807]
[1728463167724,6.9867,143.13,143.09,8.38589807]
[1728463168426,6.9868,143.13,143.09,6.9885]
[1728463169620,15.3856,143.15,143.08,17.4721]
[1728463169824,6.9871,143.12,143.08,24.461]
[1728463170204,6.9877,143.11,143.09,1.39746772]
[1728463170406,6.9867,143.13,143.09,1.39746772]
[1728463171113,6.9877,143.11,143.06,30.766584]
[1728463171319,6.9877,143.11,143.07,6.9894]
[1728463172032,20.0,143.14,143.05,23.9948]
[1728463172214,6.9882,143.1,143.05,22.66624739]
[1728463172407,20.0,143.14,143.05,22.66624739]
[1728463172630,6.9877,143.11,143.06,6.9899]
[1728463173728,6.9872,143.12,143.07,6.9895]
[1728463173938,6.9872,143.12,143.07,8.38709726]
[1728463175809,6.9872,143.12,143.07,6.9895]
[1728463177078,20.0,143.14,143.07,23.776884]
[1728463177732,20.0,143.14,143.09,6.9885]
[1728463178110,6.9869,143.13,143.08,24.461]
[1728463178327,6.9875,143.12,143.08,24.461]
[1728463178628,6.9867,143.13,143.09,1.39745785]
[1728463179626,6.9867,143.13,143.09,8.38585785]
[1728463179812,6.9867,143.13,143.09,6.9884]
[1728463180319,6.9867,143.13,143.08,24.4608]
[1728463181032,15.3856,143.15,143.04,13.14480718]
[1728463181215,20.0,143.14,143.05,17.4757]
[1728463181408,6.9879,143.11,143.07,6.9894]
[1728463182212,6.9872,143.12,143.07,6.9894]
[1728463184833,6.9872,143.12,143.08,6.989]
[1728463188836,6.9867,143.13,143.08,6.989]
[1728463189041,6.9867,143.13,143.09,8.38601823]
[1728463190119,6.9867,143.13,143.09,6.9885]
[1728463191642,20.0,143.14,143.09,6.9882]
[1728463191941,6.9867,143.13,143.09,6.9882]
[1728463192645,6.9867,143.13,143.07,17.4735]
[1728463192937,6.9867,143.13,143.08,6.9889]
[1728463198129,20.0,143.14,143.08,6.9889]
[1728463198336,6.9871,143.12,143.08,6.9889]
[1728463198821,26.9866,143.14,143.09,8.38602293]
[1728463199043,26.9866,143.14,143.09,6.9885]
[1728463199235,20.0,143.14,143.09,6.9885]
[1728463199583,20.0,143.14,143.1,1.39743306]
[1728463199731,26.9863,143.14,143.1,8.38543306]
[1728463200634,26.9863,143.14,143.1,6.988]
[1728463200837,26.9863,143.14,143.09,24.4596]
[1728463201042,6.9867,143.13,143.09,24.4596]
[1728463201454,6.9867,143.13,143.09,17.4711]
[1728463201656,6.9871,143.12,143.09,17.4711]
[1728463202847,6.9871,143.12,143.09,18.86865124]
[1728463203154,26.9862,143.14,143.1,6.9879]
[1728463203557,20.0,143.14,143.05,48.09630718]
[1728463203732,6.9875,143.12,143.06,45.06457908]
[1728463203929,6.9875,143.12,143.08,23.776884]
[1728463204133,6.9875,143.12,143.06,41.251484]
[1728463204355,6.9867,143.13,143.08,30.765484]
[1728463204743,6.9867,143.13,143.09,3.81463852]
[1728463204947,6.9871,143.12,143.08,6.9886]
[1728463205134,6.9871,143.12,143.09,3.81460222]
[1728463205332,6.9871,143.12,143.07,6.9894]
[1728463205539,6.9877,143.11,143.08,3.81495629]
[1728463205741,6.9872,143.12,143.09,5.21250868]
[1728463205961,6.9872,143.12,143.09,1.39755239]
[1728463206530,20.0,143.14,143.09,1.39755239]
[1728463206735,6.9867,143.13,143.09,8.38595239]
[1728463206936,26.9861,143.14,143.09,8.38595239]
[1728463207244,26.9861,143.14,143.09,1.39755239]
[1728463207444,26.9861,143.14,143.1,6.988]
[1728463207748,26.9861,143.14,143.11,1.39735597]
[1728463208769,6.9861,143.14,143.11,1.39735597]
[1728463213372,6.9861,143.14,143.1,6.988]
[1728463213580,6.9868,143.13,143.09,6.9884]
[1728463215176,6.9868,143.13,143.08,17.4723]
[1728463215477,6.9868,143.13,143.09,3.81545266]
[1728463215676,6.9868,143.13,143.08,24.4612]
[1728463215881,6.9868,143.13,143.09,3.81550784]
[1728463216073,6.9868,143.13,143.1,3.81537961]
[1728463216254,6.9868,143.13,143.08,24.4612]
[1728463216455,6.9868,143.13,143.09,3.81558632]
[1728463216681,6.9868,143.13,143.1,3.81558632]
[1728463216855,6.9868,143.13,143.09,6.9885]
[1728463217180,6.9868,143.13,143.1,3.81558407]
[1728463217366,6.9868,143.13,143.09,6.9885]
[1728463217675,6.9868,143.13,143.1,3.81548759]
[1728463217876,6.9868,143.13,143.09,6.9885]
[1728463218179,6.9871,143.12,143.08,24.4613]
[1728463218365,6.9871,143.12,143.09,3.81533414]
[1728463218572,6.9871,143.12,143.08,24.4613]
[1728463218767,6.9868,143.13,143.09,12.2012785]
[1728463218951,15.3856,143.15,143.11,6.9872]
[1728463219290,15.3856,143.15,143.12,8.38404254]
[1728463220077,15.3856,143.15,143.13,1.3971305]
[1728463220380,20.0,143.18,143.14,6.9861]
[1728463220586,26.9844,143.18,143.14,6.9861]
[1728463221265,23.2746,143.19,143.15,8.38263749]
[1728463221453,16.2908,143.19,143.15,8.38263749]
[1728463221852,0.6615976,143.2,143.16,6.9848]
[1728463222105,7.6448976,143.2,143.15,6.9856]
[1728463222457,6.9838,143.19,143.14,24.4509]
[1728463222659,0.6615976,143.2,143.13,23.776884]
[1728463222876,6.9847,143.17,143.13,23.776884]
[1728463223091,6.9841,143.19,143.13,30.763484]
[1728463223277,0.6615976,143.2,143.13,30.763484]
[1728463223589,6.9843,143.18,143.14,6.986]
[1728463224077,6.9847,143.17,143.11,17.4688]
[1728463224285,6.9847,143.17,143.12,30.763984]
[1728463227295,6.9854,143.16,143.11,24.4563]
[1728463227773,6.9857,143.15,143.11,24.4563]
[1728463229275,15.8187,143.17,143.11,24.4563]
[1728463229474,6.9853,143.16,143.11,24.4563]
[1728463230078,15.8187,143.17,143.11,17.4688]
[1728463230262,6.9862,143.14,143.11,17.4688]
[1728463231158,6.9857,143.15,143.11,17.4688]
[1728463232293,6.9863,143.14,143.1,6.988]
[1728463232975,6.9863,143.14,143.1,10.78919876]
[1728463233390,6.9857,143.15,143.1,10.78919876]
[1728463233586,6.9857,143.15,143.1,6.988]
[1728463233897,6.9857,143.15,143.1,10.78919876]
[1728463234073,6.9857,143.15,143.1,6.988]
[1728463234365,6.9857,143.15,143.1,10.78919876]
[1728463234568,6.9857,143.15,143.1,6.988]
[1728463234795,6.9857,143.15,143.1,10.78919876]
[1728463234994,6.9857,143.15,143.1,6.988]
[1728463235167,6.9865,143.14,143.1,3.80119876]
[1728463235768,6.9865,143.14,143.1,3.80166013]
[1728463236096,15.8187,143.17,143.1,3.80166013]
[1728463236286,15.8187,143.17,143.08,24.461]
[1728463236287,6.9872,143.12,143.08,24.461]
[1728463237175,15.8187,143.17,143.04,19.32160718]
[1728463237377,15.8187,143.17,143.05,27.5803347]
[1728463237576,6.9867,143.13,143.09,6.9885]
[1728463238097,6.9867,143.13,143.1,1.3974611]
[1728463239695,6.9867,143.13,143.09,6.9885]
[1728463239989,20.0,143.16,143.09,6.9885]
[1728463240293,6.9863,143.14,143.09,6.9885]
[1728463240500,6.9867,143.13,143.09,6.9885]
[1728463240692,6.9871,143.12,143.08,3.8034507]
[1728463242103,6.9877,143.11,143.08,3.8034507]
[1728463243080,6.9872,143.12,143.08,3.80345897]
[1728463245196,6.9877,143.11,143.08,3.80345897]
[1728463245400,37.4634,143.16,143.08,3.80345897]
[1728463245700,6.9877,143.11,143.08,3.80345897]
[1728463246897,6.9877,143.11,143.08,7.61005107]
[1728463247104,6.9872,143.12,143.08,3.8065921]
[1728463247483,6.9872,143.12,143.07,24.4629]
[1728463247689,6.9872,143.12,143.08,3.8077194]
[1728463249604,15.4583,143.12,143.08,3.8077194]
[1728463249808,6.9881,143.1,143.08,3.8077194]
[1728463250094,6.9881,143.1,143.07,3.81100843]
[1728463250298,6.9881,143.1,143.06,6.99]
[1728463250505,6.988,143.11,143.07,3.81087415]
[1728463250702,6.9882,143.1,143.07,3.81087415]
[1728463250907,6.9886,143.09,143.07,3.81087415]
[1728463251278,6.9882,143.1,143.07,3.81087415]
[1728463251502,6.9882,143.1,143.06,6.9899]
[1728463251708,6.9882,143.1,143.05,3.81087415]
[1728463251888,6.9882,143.1,143.05,6.9904]
[1728463252103,6.9882,143.1,143.05,10.80263304]
[1728463252399,6.9882,143.1,143.05,6.9904]
[1728463253683,6.9888,143.09,143.04,17.4768]
[1728463253887,6.9892,143.08,143.04,24.4677]
[1728463254707,6.9892,143.08,143.04,17.4768]
[1728463258213,6.9892,143.08,143.04,17.4768]
[1728463260700,20.0,143.11,143.05,1.39796464]
[1728463261115,22.4455,143.12,143.06,17.4741]
[1728463261288,22.4455,143.12,143.06,24.4636]
[1728463261487,22.4455,143.12,143.07,6.9893]
[1728463261688,6.9877,143.11,143.07,6.9893]
[1728463263415,15.4583,143.12,143.07,6.9893]
[1728463263416,22.4455,143.12,143.08,1.3976512]
[1728463263916,15.4583,143.12,143.09,6.9885]
[1728463264623,15.4583,143.12,143.08,24.4611]
[1728463266909,22.4455,143.12,143.08,24.4611]
[1728463267488,15.4583,143.12,143.05,6.248]
[1728463267812,15.4583,143.12,143.05,24.4661]
[1728463267996,6.9886,143.09,143.05,24.4661]
[1728463270322,6.9886,143.09,143.05,17.4757]
[1728463270516,6.9896,143.07,143.02,23.776884]
[1728463270710,20.0,143.11,143.02,23.776884]
[1728463270912,20.0,143.11,143.02,30.768484]
[1728463270913,6.9896,143.07,143.02,30.768484]
[1728463271121,6.9896,143.07,143.03,6.9914]
[1728463271727,17.4709,143.1,143.03,6.9914]
[1728463271893,6.9892,143.08,143.03,6.9914]
[1728463272620,17.4709,143.1,143.03,6.9914]
[1728463272829,6.9896,143.07,143.01,17.4802]
[1728463273004,6.9896,143.07,143.02,6.992]
[1728463273621,6.9902,143.06,143.02,6.992]
[1728463273923,6.9902,143.06,143.01,17.4802]
[1728463273924,6.9901,143.06,143.01,24.4726]
[1728463274651,6.9901,143.06,143.01,17.4802]
[1728463274838,6.9901,143.06,143.02,6.992]
[1728463276909,6.9908,143.05,143.01,17.4802]
[1728463277322,6.9908,143.05,143.01,25.87079214]
[1728463277825,6.9901,143.06,143.02,6.9919]
[1728463279731,20.0,143.07,143.03,18.87638896]
[1728463279933,20.0,143.07,143.03,24.4695]
[1728463280310,26.9897,143.07,143.03,24.4695]
[1728463280834,6.9901,143.06,143.03,17.4782]
[1728463281209,6.9901,143.06,143.02,6.9919]
[1728463281773,6.9907,143.05,143.0,24.4744]
[1728463282032,6.6094,143.06,142.98,6.9939]
[1728463282430,20.0,143.05,142.98,6.9939]
[1728463283213,6.9916,143.03,142.99,6.9934]
[1728463283735,6.9911,143.04,143.0,1.39843338]
[1728463284837,6.9915,143.03,142.99,6.9934]
[1728463285225,20.0,143.05,142.97,17.4855]
[1728463285429,20.0,143.05,142.99,1.39843786]
[1728463285430,6.992,143.02,142.99,1.39843786]
[1728463286950,6.9916,143.03,142.99,1.39843786]
[1728463288628,6.9921,143.02,142.98,6.9939]
[1728463289141,6.9928,143.01,142.97,17.4855]
[1728463289327,6.9928,143.01,142.98,1.39864378]
[1728463290039,6.9928,143.01,142.97,24.4799]
[1728463292342,15.8308,143.03,142.98,1.39858127]
[1728463292639,15.8308,143.03,142.99,6.9931]
[1728463292839,22.8223,143.03,142.98,6.9938]
[1728463293047,6.9921,143.02,142.98,6.9938]
[1728463293848,6.9921,143.02,142.98,8.39235947]
[1728463294545,15.8308,143.03,142.98,8.39235947]
[1728463294747,20.0,143.05,142.99,17.4832]
[1728463294953,15.2274,143.06,143.01,41.257484]
[1728463295124,6.3496,143.1,143.03,6.9911]
[1728463295125,6.9892,143.08,143.03,6.9911]
[1728463295430,22.2161,143.09,143.04,8.38871135]
[1728463295826,22.2161,143.09,143.03,24.4695]
[1728463295827,6.9893,143.08,143.03,24.4695]
[1728463296155,6.9897,143.07,143.03,24.4695]
[1728463297031,6.9897,143.07,143.03,17.4781]
[1728463297233,6.9902,143.06,143.01,30.769284]
[1728463297539,20.0,143.08,143.0,24.4748]
[1728463298219,6.9916,143.03,142.98,23.776884]
[1728463298424,6.9911,143.04,142.99,6.9931]
[1728463298624,6.9911,143.04,143.0,8.39112]
[1728463298851,37.4737,143.08,143.01,6.9924]
[1728463298852,6.9905,143.05,143.01,6.9924]
[1728463299036,6.9905,143.05,143.02,1.39824819]
[1728463300334,6.9905,143.05,143.0,6.9929]
[1728463300843,6.9905,143.05,143.01,1.39826093]
[1728463301337,6.9911,143.04,143.0,6.9929]
[1728463302621,37.4737,143.08,143.0,6.9929]
[1728463302622,6.9905,143.05,143.0,8.3912525]
[1728463304632,6.9911,143.04,143.0,6.9929]
[1728463305846,6.9911,143.04,143.01,1.39835094]
[1728463307154,6.9911,143.04,143.0,6.9929]
[1728463308232,6.9911,143.04,142.99,24.4765]
[1728463309958,6.9915,143.03,142.99,24.4765]
[1728463310336,37.4737,143.08,143.0,1.39839708]
[1728463310660,6.9911,143.04,143.0,1.39839708]
[1728463311152,20.0,143.08,143.01,41.257484]
[1728463311334,20.0,143.08,143.02,1.39810322]
[1728463311534,20.0,143.08,143.02,6.9918]
[1728463311750,6.9901,143.06,143.01,48.249784]
[1728463312331,6.9901,143.06,143.02,5.22365123]
[1728463312533,6.9901,143.06,143.01,48.249784]
[1728463312852,20.0,143.08,142.98,17.4843]
[1728463313153,20.0,143.08,142.99,12.21717651]
[1728463313154,6.9919,143.03,142.99,12.21717651]
[1728463313456,6.9919,143.03,143.0,5.22387651]
[1728463313752,6.9919,143.03,142.99,6.9933]
[1728463313947,6.9919,143.03,143.0,5.2265801]
[1728463314357,6.9919,143.03,142.99,6.9933]
[1728463314543,6.9919,143.03,143.0,5.22781582]
[1728463314756,6.9919,143.03,142.99,6.9933]
[1728463315132,6.9919,143.03,143.0,5.2280434]
[1728463315463,6.9919,143.03,143.0,1.39840373]
[1728463316330,17.4746,143.07,143.0,1.39840373]
[1728463316331,6.9902,143.06,143.01,6.9921]
[1728463316538,20.0,143.05,143.02,1.39824136]
[1728463317033,26.9906,143.05,143.02,1.39824136]
[1728463317361,6.9914,143.04,143.0,17.4816]
[1728463317547,6.9914,143.04,143.01,5.23088199]
[1728463317748,6.9914,143.04,143.0,18.88000187]
[1728463317950,6.9914,143.04,143.01,5.2308815]
[1728463318149,6.9914,143.04,143.0,25.87280187]
[1728463318534,6.9914,143.04,143.01,5.23088028]
[1728463318834,6.9914,143.04,143.0,25.87280187]
[1728463319033,6.9914,143.04,143.01,5.23183362]
[1728463319255,6.9914,143.04,143.0,25.87280187]
[1728463319640,37.4733,143.08,143.0,24.4744]
[1728463319844,6.9909,143.05,143.0,24.4744]
[1728463320456,6.9909,143.05,143.01,1.39831444]
[1728463320660,6.9911,143.04,143.0,24.4744]
[1728463321266,6.9911,143.04,143.0,17.4816]
[1728463322562,6.9907,143.05,143.01,8.39071438]
[1728463323059,6.9907,143.05,143.0,24.4745]
[1728463323258,6.9912,143.04,143.0,24.4745]
[1728463324435,6.9915,143.03,142.99,6.9934]
[1728463327341,6.9922,143.02,142.97,48.256384]
[1728463327644,37.4733,143.08,142.97,48.256384]
[1728463327645,6.9916,143.03,142.98,6.9936]
[1728463329463,6.9916,143.03,142.99,6.9934]
[1728463330850,6.9916,143.03,143.0,1.39840408]
[1728463331764,6.9906,143.05,143.0,8.39100408]
[1728463332154,6.9906,143.05,143.01,6.9923]
[1728463332359,6.9906,143.05,143.02,1.39822687]
[1728463332871,6.9896,143.07,143.03,6.9913]
[1728463333043,6.9892,143.08,143.04,8.38893723]
[1728463333341,6.9892,143.08,143.03,6.9914]
[1728463335368,15.2274,143.09,143.04,1.3979315]
[1728463335547,15.2274,143.09,143.06,6.9899]
[1728463335754,16.3375,143.13,143.07,1.39772829]
[1728463336444,6.988,143.11,143.07,1.39772829]
[1728463336653,6.9882,143.1,143.07,1.39772829]
[1728463340561,6.9882,143.1,143.06,6.9899]
[1728463340766,6.9882,143.1,143.05,24.4663]
[1728463342575,20.0,143.12,143.05,24.4663]
[1728463342750,6.9895,143.08,143.03,6.991]
[1728463342954,17.4683,143.12,143.03,6.991]
[1728463342955,6.9895,143.07,143.03,6.991]
[1728463343643,6.9892,143.08,143.03,6.991]
[1728463343845,6.9899,143.07,143.02,24.4711]
[1728463344050,15.8252,143.1,143.02,17.4792]
[1728463344051,6.9905,143.05,143.02,17.4792]
[1728463344958,20.0,143.09,143.02,17.4792]
[1728463345157,6.9902,143.06,143.02,17.4792]
[1728463345475,20.0,143.07,142.99,24.4759]
[1728463345664,20.0,143.07,142.99,17.4829]
[1728463345665,6.9911,143.04,142.99,17.4829]
[1728463345863,6.9911,143.04,143.0,6.9928]
[1728463346281,6.9916,143.03,142.99,24.4762]
[1728463346587,6.9916,143.03,142.99,17.4829]
[1728463347582,6.9921,143.02,142.98,6.9938]
[1728463348572,6.9915,143.03,142.98,6.9938]
[1728463349880,6.9915,143.03,142.99,6.9933]
[1728463351568,6.9915,143.03,143.0,1.39840635]
[1728463354993,6.9925,143.01,142.97,30.771184]
[1728463355191,20.0,143.04,142.97,23.776884]
[1728463355388,6.9926,143.01,142.97,23.776884]
[1728463355692,6.9926,143.01,142.97,30.771184]
[1728463356869,6.9926,143.01,142.97,6.9943]
[1728463357069,6.9926,143.01,142.97,8.39293317]
[1728463357895,6.9926,143.01,142.97,6.9943]
[1728463358481,6.9926,143.01,142.97,8.39293158]
[1728463359595,6.9916,143.03,142.98,6.9935]
[1728463359893,20.0,143.04,142.99,1.39850186]
[1728463360084,20.0,143.04,142.95,13.14480718]
[1728463360085,26.991,143.04,143.0,24.4748]
[1728463362383,26.991,143.04,143.0,17.482]
[1728463362584,26.991,143.04,143.0,18.88037786]
[1728463364722,6.9915,143.03,142.99,6.9933]
[1728463365504,6.9915,143.03,142.98,6.9938]
[1728463367501,6.9924,143.02,142.97,48.256484]
[1728463367796,6.9931,143.0,142.94,17.4892]
[1728463368000,6.9931,143.0,142.95,6.9953]
[1728463368509,6.9935,142.99,142.95,6.9953]
[1728463369994,6.9935,142.99,142.95,8.39415894]
[1728463370191,6.9935,142.99,142.95,6.9953]
[1728463372090,6.9935,142.99,142.95,8.39414724]
[1728463373607,20.0,143.02,142.95,8.39414724]
[1728463373914,6.9931,143.0,142.95,8.39414724]
[1728463374487,6.9931,143.0,142.95,6.9953]
[1728463375584,6.9938,142.99,142.94,24.4847]
[1728463376097,6.9938,142.99,142.95,1.39875932]
[1728463376302,6.9938,142.99,142.95,8.39405932]
[1728463376690,6.9938,142.99,142.95,6.9953]
[1728463376891,6.9938,142.99,142.96,1.39875874]
[1728463377411,22.9957,143.03,142.96,18.88535874]
[1728463377598,26.9924,143.02,142.96,18.88535874]
[1728463378089,26.9924,143.02,142.97,6.9943]
[1728463378597,6.9925,143.01,142.97,6.9943]
[1728463381604,6.9925,143.01,142.96,24.4814]
[1728463383018,6.9931,143.0,142.96,24.4814]
[1728463383634,6.9931,143.0,142.96,17.4866]
[1728463383797,6.9936,142.99,142.95,6.9953]
[1728463383997,6.9936,142.99,142.96,5.2213828]
[1728463384937,6.9936,142.99,142.95,6.9953]
[1728463385229,6.9931,143.0,142.96,12.21775187]
[1728463385411,6.9931,143.0,142.96,6.9948]
[1728463385808,23.4929,143.03,142.99,6.9931]
[1728463386018,23.4929,143.03,142.97,32.02936723]
[1728463386019,23.4929,143.03,142.98,8.39224648]
[1728463386211,23.4929,143.03,142.98,13.61888723]
[1728463386611,6.9925,143.01,142.97,17.4858]
[1728463387625,6.9925,143.01,142.98,5.22924722]
[1728463387930,6.9936,142.99,142.94,17.4897]
[1728463388122,6.994,142.98,142.95,5.22948476]
[1728463388313,6.9945,142.97,142.96,5.23279862]
[1728463390230,23.3808,142.98,142.96,5.23279862]
[1728463390423,23.3808,142.98,142.97,5.23279862]
[1728463391620,23.3808,142.98,142.97,5.23717121]
[1728463398537,6.9946,142.97,142.92,6.9968]
[1728463398820,6.9946,142.97,142.93,5.23770372]
[1728463399030,6.9946,142.97,142.94,5.23770372]
[1728463399335,6.9946,142.97,142.95,5.23770372]
[1728463399517,6.9946,142.97,142.96,5.23770372]
[1728463402115,6.9946,142.97,142.96,5.2390357]
[1728463402335,26.9946,142.97,142.96,5.2390357]
[1728463402530,6.9946,142.97,142.92,6.9968]
[1728463403031,20.0,142.97,142.93,1.39910149]
[1728463403342,20.0,142.97,142.94,6.9958]
[1728463406013,20.0,142.97,142.92,23.776884]
[1728463406212,20.0,142.97,142.93,6.9963]
[1728463410444,23.3808,142.98,142.93,6.9963]
[1728463410925,6.9944,142.97,142.93,6.9963]
[1728463415451,6.9944,142.97,142.94,1.39901575]
[1728463416432,16.3868,142.98,142.95,6.9953]
[1728463416636,6.9935,142.99,142.95,8.39414885]
[1728463416845,6.9935,142.99,142.94,6.9958]
[1728463417635,20.0,143.01,142.93,24.4864]
[1728463419137,6.9944,142.97,142.93,24.4864]
[1728463425547,6.995,142.96,142.92,6.9967]
[1728463425853,6.995,142.96,142.9,41.270784]
[1728463426059,6.995,142.96,142.91,6.9973]
[1728463426260,6.995,142.96,142.92,6.9967]
[1728463426729,6.995,142.96,142.93,1.39908461]
[1728463430160,6.9945,142.97,142.93,8.39528461]
[1728463430338,6.994,142.98,142.94,6.9959]
[1728463430544,6.994,142.98,142.95,1.39891594]
[1728463430743,6.994,142.98,142.94,8.39484147]
[1728463431643,6.994,142.98,142.94,6.9959]
[1728463432275,6.994,142.98,142.93,8.39518133]
[1728463432966,6.994,142.98,142.94,6.9957]
[1728463433164,6.994,142.98,142.93,8.39528133]
[1728463434532,6.9951,142.96,142.92,24.4885]
[1728463434963,37.4842,142.99,142.9,6.9975]
[1728463435141,16.6606,142.98,142.9,6.9975]
[1728463435348,20.0,142.97,142.9,6.9975]
[1728463435947,6.9959,142.94,142.9,6.9975]
[1728463436653,6.9959,142.94,142.91,1.3992411]
[1728463439971,20.0,142.97,142.91,1.3992411]
[1728463440150,6.995,142.96,142.92,6.9967]